[Event "DFMMLV 2024"]
[Site "Braunfels"]
[Date "2024.06.02"]
[Round "5.21"]
[White "Werner, Rosalie"]
[Black "Valkova, Angelika"]
[Result "0-1"]
[ECO "C24"]
[WhiteElo "1937"]
[BlackElo "2004"]
[Annotator "NA RC"]
[PlyCount "60"]
[EventDate "2024.05.30"]
[EventType "team-tourn"]
[EventCountry "GER"]
[SourceTitle "playchess.com"]
[Source "ChessBase"]
[SourceQuality "1"]
[TimeControl "40/5400+30:1800+30"]

1. e4 {[%emt 0:00:02]} e5 {[%emt 0:00:06]} 2. Nf3 {[%emt 0:00:06]} Nc6 {[%emt 0:00:05]} 3. Bc4 {[%emt 0:00:05]} Nf6 {[%emt 0:00:06]} 4. d3 {[%emt 0:00:07]} d5 {[%emt 0:00:06]} 5. exd5 {[%emt 0:00:05]} Nxd5 {[%emt 0:00:05]} 6. O-O {[%emt 0:00:32]} Nb6 {[%emt 0:00:13]} 7. Bb5 {[%emt 0:03:50]} Bd6 {[%emt 0:00:14]} 8. Re1 {[%emt 0:00:55]} f6 {[%emt 0:00:13]} 9. Nbd2 {[%emt 0:11:16]} O-O {[%emt 0:05:21]} 10. Nb3 {[%emt 0:05:19]} Bg4 {[%emt 0:04:30]} 11. h3 {[%emt 0:01:23]} Bh5 {[%emt 0:05:54]} 12. c3 {[%emt 0:07:13]} a6 {[%emt 0:08:27]} 13. Bxc6 {[%emt 0:03:04]} bxc6 {[%emt 0:00:06]} 14. d4 {[%emt 0:07:57]} exd4 {[%emt 0:06:41]} 15. Nbxd4 {[%emt 0:00:27]} Qd7 {[%emt 0:00:30]} 16. Be3 {[%emt 0:08:53]} Nc4 {[%emt 0:07:09]} 17. Qb3 {[%emt 0:05:17]} Bf7 {[%emt 0:00:14]} 18. Qc2 {[%emt 0:00:55]} Rab8 {[%emt 0:05:24]} 19. b3 {[%emt 0:00:37]} Nxe3 {[%emt 0:01:38]} 20. Rxe3 {[%emt 0:00:14]} Bg6 {[%emt 0:07:27]} 21. Qe2 {[%emt 0:03:17]} c5 {[%emt 0:00:13]} 22. Nc2 {[%emt 0:06:11]} Rfe8 {[%emt 0:02:09]} 23. Re1 {[%emt 0:03:42]} Kf8 {[%emt 0:08:01]} 24. Na3 {[%emt 0:05:36]} Bf4 {[%emt 0:09:29]} 25. Rxe8+ {[%emt 0:01:13]} Rxe8 {[%emt 0:00:06]} 26. Qc4 {[%emt 0:05:15]} Rxe1+ {[%emt 0:00:45]} 27. Nxe1 {[%emt 0:00:08]} Qd2 {[%emt 0:05:34]} 28. Qxc5+ {[%emt 0:06:24]} Bd6 {[%emt 0:00:37]} 29. Qe3 {[%emt 0:01:16]} Qxe3 {[%emt 0:00:13]} 30. fxe3 {[%emt 0:00:04]} Bxa3 {[%emt 0:00:07]} 0-1

[Event "DFMMLV 2024"]
[Site "Braunfels"]
[Date "2024.06.02"]
[Round "5.22"]
[White "Gheng, Simona"]
[Black "Pralle, Katharina"]
[Result "1-0"]
[ECO "B01"]
[WhiteElo "1982"]
[BlackElo "1960"]
[Annotator "RC"]
[PlyCount "89"]
[EventDate "2024.05.30"]
[EventType "team-tourn"]
[EventCountry "GER"]
[SourceTitle "playchess.com"]
[Source "ChessBase"]
[SourceQuality "1"]
[TimeControl "40/5400+30:1800+30"]

1. e4 {[%emt 0:00:04]} d5 {[%emt 0:00:03]} 2. exd5 {[%emt 0:00:21]} Qxd5 {[%emt 0:00:05]} 3. d4 {[%emt 0:00:26]} Nf6 {[%emt 0:00:47]} 4. Nf3 {[%emt 0:00:28]} Bg4 {[%emt 0:05:29]} 5. Be2 {[%emt 0:02:36]} e6 {[%emt 0:01:00]} 6. Nbd2 {[%emt 0:04:01]} c6 {[%emt 0:01:43]} 7. c3 {[%emt 0:01:10]} Be7 {[%emt 0:02:59]} 8. h3 {[%emt 0:01:55]} Bh5 {[%emt 0:02:46]} 9. O-O {[%emt 0:01:49]} h6 {[%emt 0:10:16]} 10. Ne5 {[%emt 0:01:55]} Bxe2 {[%emt 0:00:33]} 11. Qxe2 {[%emt 0:00:18]} Nbd7 {[%emt 0:03:14]} 12. Re1 {[%emt 0:01:59]} O-O {[%emt 0:03:29]} 13. Ndf3 {[%emt 0:05:13]} Nb6 {[%emt 0:03:45]} 14. c4 {[%emt 0:02:29]} Qd8 {[%emt 0:01:05]} 15. Rd1 {[%emt 0:02:10]} Nbd7 {[%emt 0:07:26]} 16. b3 {[%emt 0:02:21]} Re8 {[%emt 0:05:48]} 17. Bb2 {[%emt 0:03:43]} Qa5 {[%emt 0:04:07]} 18. Rd3 {[%emt 0:15:01]} Ba3 {[%emt 0:04:22]} 19. Bxa3 {[%emt 0:07:38]} Qxa3 {[%emt 0:00:07]} 20. b4 {[%emt 0:00:27]} Qa6 {[%emt 0:07:56]} 21. a4 {[%emt 0:08:47]} Qb6 {[%emt 0:01:01]} 22. b5 {[%emt 0:02:59]} cxb5 {[%emt 0:02:21]} 23. axb5 {[%emt 0:00:13]} Red8 {[%emt 0:03:23]} 24. Nxd7 {[%emt 0:01:39]} Rxd7 {[%emt 0:03:18]} 25. Rda3 {[%emt 0:00:21]} a5 {[%emt 0:14:09]} 26. bxa6 {[%emt 0:04:03]} Rxa6 {[%emt 0:01:37]} 27. Rxa6 {[%emt 0:00:18]} bxa6 {[%emt 0:00:03]} 28. c5 {[%emt 0:01:23]} Qb5 {[%emt 0:02:51]} 29. Qxb5 {[%emt 0:00:10]} axb5 {[%emt 0:00:04]} 30. Ra8+ {[%emt 0:00:23]} Kh7 {[%emt 0:00:05]} 31. Rb8 {[%emt 0:00:21]} Nd5 {[%emt 0:01:16]} 32. Rxb5 {[%emt 0:01:51]} Nc3 {[%emt 0:03:53]} 33. Rb2 {[%emt 0:01:45]} Kg8 {[%emt 0:01:21]} 34. Kf1 {[%emt 0:03:05]} Kf8 {[%emt 0:00:19]} 35. g3 {[%emt 0:01:58]} Ke7 {[%emt 0:00:34]} 36. Rb3 {[%emt 0:00:25]} Ne4 {[%emt 0:03:09]} 37. Ke2 {[%emt 0:04:50]} Nf6 {[%emt 0:00:10]} 38. Ne5 {[%emt 0:00:37]} Rc7 {[%emt 0:01:11]} 39. Rb8 {[%emt 0:03:12]} Nd7 {[%emt 0:01:03]} 40. Nxd7 {[%emt 0:00:23]} Kxd7 {[%emt 0:00:18]} 41. Kd3 {[%emt 0:31:57]} e5 {[%emt 0:07:18]} 42. Kc4 {[%emt 0:00:00]} exd4 {[%emt 0:00:45]} 43. Kxd4 {[%emt 0:00:00]} f5 {[%emt 0:11:10]} 44. Kd5 {[%emt 0:00:00]} Ke7 {[%emt 0:00:10]} 45. c6 {[%emt 0:00:00]} 1-0

[Event "DFMMLV 2024"]
[Site "Braunfels"]
[Date "2024.06.02"]
[Round "5.24"]
[White "Wellenreich, Jenni"]
[Black "Krausse, Vanessa"]
[Result "1-0"]
[ECO "E81"]
[WhiteElo "1831"]
[BlackElo "1753"]
[Annotator "NA RC"]
[PlyCount "86"]
[EventDate "2024.05.30"]
[EventType "team-tourn"]
[EventCountry "GER"]
[SourceTitle "playchess.com"]
[Source "ChessBase"]
[SourceQuality "1"]
[TimeControl "40/5400+30:1800+30"]

1. d4 {[%emt 0:00:03]} Nf6 {[%emt 0:00:12]} 2. c4 {[%emt 0:00:07]} g6 {[%emt 0:00:47]} 3. Nc3 {[%emt 0:00:12]} Bg7 {[%emt 0:00:18]} 4. e4 {[%emt 0:00:13]} d6 {[%emt 0:00:58]} 5. f3 {[%emt 0:00:31]} O-O {[%emt 0:01:25]} 6. Be3 {[%emt 0:00:17]} a6 {[%emt 0:02:14]} 7. Qd2 {[%emt 0:01:43]} Nbd7 {[%emt 0:04:08]} 8. Nge2 {[%emt 0:02:05]} c5 {[%emt 0:01:09]} 9. Bh6 {[%emt 0:05:02]} Rb8 {[%emt 0:07:18]} 10. Bxg7 {[%emt 0:04:56]} Kxg7 {[%emt 0:01:07]} 11. Nc1 {[%emt 0:01:15]} cxd4 {[%emt 0:11:19]} 12. Qxd4 {[%emt 0:00:27]} b5 {[%emt 0:02:23]} 13. cxb5 {[%emt 0:02:24]} axb5 {[%emt 0:00:15]} 14. Bxb5 {[%emt 0:02:18]} Nc5 {[%emt 0:09:03]} 15. O-O {[%emt 0:03:19]} Bd7 {[%emt 0:06:57]} 16. Bxd7 {[%emt 0:05:16]} Qxd7 {[%emt 0:00:31]} 17. Rb1 {[%emt 0:02:28]} Ne6 {[%emt 0:06:31]} 18. Qd2 {[%emt 0:05:32]} Rfc8 {[%emt 0:01:22]} 19. N1e2 {[%emt 0:04:45]} Qa7+ {[%emt 0:01:53]} 20. Kh1 {[%emt 0:01:21]} Rb7 {[%emt 0:03:11]} 21. Nf4 {[%emt 0:12:08]} Nxf4 {[%emt 0:01:47]} 22. Qxf4 {[%emt 0:03:47]} Rcb8 {[%emt 0:05:28]} 23. Qd2 {[%emt 0:02:04]} Qa6 {[%emt 0:01:53]} 24. Rfc1 {[%emt 0:01:42]} e6 {[%emt 0:01:29]} 25. b3 {[%emt 0:03:30]} d5 {[%emt 0:01:37]} 26. exd5 {[%emt 0:03:15]} Nxd5 {[%emt 0:00:24]} 27. Nxd5 {[%emt 0:01:57]} exd5 {[%emt 0:00:13]} 28. Rc2 {[%emt 0:00:41]} Rd8 {[%emt 0:04:42]} 29. Qd4+ {[%emt 0:03:46]} Kg8 {[%emt 0:01:26]} 30. Rbc1 {[%emt 0:03:25]} Rbb8 {[%emt 0:04:13]} 31. h3 {[%emt 0:03:55]} Rbc8 {[%emt 0:05:13]} 32. Rxc8 {[%emt 0:01:45]} Rxc8 {[%emt 0:00:08]} 33. Rxc8+ {[%emt 0:00:25]} Qxc8 {[%emt 0:00:03]} 34. a4 {[%emt 0:02:13]} Qc1+ {[%emt 0:00:33]} 35. Kh2 {[%emt 0:00:08]} Qc7+ {[%emt 0:00:28]} 36. Kh1 {[%emt 0:01:54]} Qc1+ {[%emt 0:00:18]} 37. Kh2 {[%emt 0:02:19]} Qc7+ {[%emt 0:00:22]} 38. f4 {[%emt 0:01:22]} h6 {[%emt 0:04:52]} 39. Qe5 {[%emt 0:02:16]} Qb7 {[%emt 0:03:43]} 40. a5 {[%emt 0:04:50]} Qxb3 {[%emt 0:02:45]} 41. a6 {[%emt 0:30:19]} Qb6 {[%emt 0:31:39]} 42. Qe8+ {[%emt 0:01:35]} Kg7 {[%emt 0:03:29]} 43. Qc8 {[%emt 0:01:12]} Qd4 {[%emt 0:02:14]} 1-0

[Event "DFMMLV 2024"]
[Site "Braunfels"]
[Date "2024.06.02"]
[Round "5.25"]
[White "Korenova, Martina"]
[Black "Miljkovic, Jovana"]
[Result "1-0"]
[ECO "E04"]
[WhiteElo "2152"]
[BlackElo "2026"]
[Annotator "RC"]
[PlyCount "67"]
[EventDate "2024.05.30"]
[EventType "team-tourn"]
[EventCountry "GER"]
[SourceTitle "playchess.com"]
[Source "ChessBase"]
[SourceQuality "1"]
[TimeControl "40/5400+30:1800+30"]

1. d4 {[%emt 0:00:04]} Nf6 {[%emt 0:00:05]} 2. c4 {[%emt 0:00:13]} e6 {[%emt 0:00:04]} 3. Nf3 {[%emt 0:00:30]} d5 {[%emt 0:00:06]} 4. g3 {[%emt 0:00:35]} dxc4 {[%emt 0:00:06]} 5. Bg2 {[%emt 0:00:33]} a6 {[%emt 0:00:07]} 6. Qc2 {[%emt 0:06:30]} b5 {[%emt 0:03:27]} 7. Ne5 {[%emt 0:04:21]} Nd5 {[%emt 0:01:40]} 8. O-O {[%emt 0:00:57]} Bb7 {[%emt 0:01:00]} 9. a3 {[%emt 0:05:56]} Bd6 {[%emt 0:05:05]} 10. e4 {[%emt 0:10:05]} Nb6 {[%emt 0:01:59]} 11. Be3 {[%emt 0:07:27]} Nc6 {[%emt 0:10:00]} 12. f4 {[%emt 0:14:22]} O-O {[%emt 0:06:06]} 13. Nf3 {[%emt 0:06:17]} Na5 {[%emt 0:10:40]} 14. Nc3 {[%emt 0:01:42]} Qc8 {[%emt 0:08:39]} 15. Rad1 {[%emt 0:05:27]} Re8 {[%emt 0:08:08]} 16. Bh3 {[%emt 0:06:49]} Qd8 {[%emt 0:10:34]} 17. e5 {[%emt 0:08:24]} Be7 {[%emt 0:01:17]} 18. f5 {[%emt 0:01:14]} exf5 {[%emt 0:02:00]} 19. Bxf5 {[%emt 0:00:03]} g6 {[%emt 0:05:10]} 20. e6 {[%emt 0:00:49]} gxf5 {[%emt 0:02:34]} 21. exf7+ {[%emt 0:00:23]} Kxf7 {[%emt 0:00:15]} 22. Qxf5+ {[%emt 0:02:30]} Kg8 {[%emt 0:00:11]} 23. Qg4+ {[%emt 0:04:01]} Kh8 {[%emt 0:00:09]} 24. Ne5 {[%emt 0:01:16]} Rf8 {[%emt 0:02:02]} 25. Rf7 {[%emt 0:08:34]} Bf6 {[%emt 0:04:44]} 26. Bh6 {[%emt 0:02:15]} Rg8 {[%emt 0:03:30]} 27. Qf5 {[%emt 0:00:18]} Bg7 {[%emt 0:01:31]} 28. Bxg7+ {[%emt 0:00:25]} Rxg7 {[%emt 0:00:09]} 29. Rxg7 {[%emt 0:00:12]} Kxg7 {[%emt 0:00:13]} 30. Qg4+ {[%emt 0:00:03]} Kf6 {[%emt 0:00:52]} 31. Rf1+ {[%emt 0:00:08]} Ke7 {[%emt 0:00:14]} 32. Qg7+ {[%emt 0:00:35]} Ke6 {[%emt 0:00:21]} 33. Qf7+ {[%emt 0:00:27]} Kd6 {[%emt 0:00:14]} 34. Rf6+ {[%emt 0:04:05]} 1-0

[Event "DFMMLV 2024"]
[Site "Braunfels"]
[Date "2024.06.02"]
[Round "5.26"]
[White "Rieping, Lea"]
[Black "Peglau, Dora"]
[Result "0-1"]
[ECO "D00"]
[WhiteElo "1966"]
[BlackElo "2002"]
[Annotator "RC"]
[PlyCount "98"]
[EventDate "2024.05.30"]
[EventType "team-tourn"]
[EventCountry "GER"]
[SourceTitle "playchess.com"]
[Source "ChessBase"]
[SourceQuality "1"]
[TimeControl "40/5400+30:1800+30"]

1. d4 {[%emt 0:00:07]} d5 {[%emt 0:00:13]} 2. Nc3 {[%emt 0:00:07]} Nf6 {[%emt 0:00:10]} 3. Bf4 {[%emt 0:00:06]} g6 {[%emt 0:00:32]} 4. Nb5 {[%emt 0:00:41]} Na6 {[%emt 0:00:12]} 5. e3 {[%emt 0:00:22]} Bg7 {[%emt 0:00:35]} 6. Nf3 {[%emt 0:00:57]} O-O {[%emt 0:01:09]} 7. Be2 {[%emt 0:02:20]} c6 {[%emt 0:04:43]} 8. Nc3 {[%emt 0:00:05]} Nh5 {[%emt 0:06:15]} 9. Bg3 {[%emt 0:09:32]} c5 {[%emt 0:08:21]} 10. Bh4 {[%emt 0:08:02]} cxd4 {[%emt 0:04:58]} 11. Nxd4 {[%emt 0:13:31]} Nf6 {[%emt 0:01:21]} 12. O-O {[%emt 0:00:11]} Nc5 {[%emt 0:08:06]} 13. Bf3 {[%emt 0:02:31]} Nfe4 {[%emt 0:15:02]} 14. Nxe4 {[%emt 0:05:39]} dxe4 {[%emt 0:00:29]} 15. Be2 {[%emt 0:01:34]} h6 {[%emt 0:04:01]} 16. c3 {[%emt 0:04:45]} Kh7 {[%emt 0:05:42]} 17. Nb3 {[%emt 0:00:55]} Qc7 {[%emt 0:04:10]} 18. Qd5 {[%emt 0:05:47]} Nxb3 {[%emt 0:02:46]} 19. axb3 {[%emt 0:00:30]} f5 {[%emt 0:04:28]} 20. Rfd1 {[%emt 0:01:37]} g5 {[%emt 0:06:01]} 21. Bg3 {[%emt 0:00:10]} e5 {[%emt 0:00:38]} 22. h4 {[%emt 0:07:54]} f4 {[%emt 0:02:23]} 23. Bh2 {[%emt 0:00:35]} Bf5 {[%emt 0:00:53]} 24. hxg5 {[%emt 0:03:57]} hxg5 {[%emt 0:00:02]} 25. Qd6 {[%emt 0:16:22]} Rf7 {[%emt 0:03:42]} 26. Bc4 {[%emt 0:01:03]} Rd7 {[%emt 0:02:12]} 27. Qxc7 {[%emt 0:01:12]} Rxc7 {[%emt 0:00:01]} 28. Rd6 {[%emt 0:00:13]} Rd7 {[%emt 0:07:26]} 29. Rad1 {[%emt 0:01:12]} Rad8 {[%emt 0:00:47]} 30. Rxd7 {[%emt 0:00:08]} Rxd7 {[%emt 0:00:01]} 31. Rxd7 {[%emt 0:00:07]} Bxd7 {[%emt 0:00:04]} 32. f3 {[%emt 0:06:27]} exf3 {[%emt 0:04:01]} 33. exf4 {[%emt 0:01:24]} exf4 {[%emt 0:02:00]} 34. gxf3 {[%emt 0:00:07]} Kg6 {[%emt 0:01:15]} 35. Kg2 {[%emt 0:00:20]} Bc6 {[%emt 0:01:34]} 36. Be6 {[%emt 0:00:20]} Kf6 {[%emt 0:00:40]} 37. Bc8 {[%emt 0:00:18]} b6 {[%emt 0:01:06]} 38. Bg1 {[%emt 0:00:05]} Ke7 {[%emt 0:00:37]} 39. Bf2 {[%emt 0:01:23]} Kd6 {[%emt 0:00:48]} 40. Bg4 {[%emt 0:01:08]} Bd5 {[%emt 0:00:22]} 41. b4 {[%emt 0:30:36]} Be6 {[%emt 0:07:26]} 42. Bxe6 {[%emt 0:00:00]} Kxe6 {[%emt 0:00:01]} 43. Kh3 {[%emt 0:00:00]} Kf5 {[%emt 0:14:18]} 44. c4 {[%emt 0:00:00]} Bxb2 {[%emt 0:01:09]} 45. c5 {[%emt 0:00:00]} bxc5 {[%emt 0:04:43]} 46. bxc5 {[%emt 0:00:00]} Ke6 {[%emt 0:02:21]} 47. c6 {[%emt 0:00:00]} a5 {[%emt 0:00:48]} 48. Kg4 {[%emt 0:00:00]} a4 {[%emt 0:00:28]} 49. Bc5 {[%emt 0:00:00]} a3 {[%emt 0:00:19]} 0-1

[Event "DFMMLV 2024"]
[Site "Braunfels"]
[Date "2024.06.02"]
[Round "5.27"]
[White "Steinbacher, Claudia"]
[Black "Kramer, Helga"]
[Result "1-0"]
[ECO "E51"]
[WhiteElo "2027"]
[BlackElo "2092"]
[Annotator "RC"]
[PlyCount "101"]
[EventDate "2024.05.30"]
[EventType "team-tourn"]
[EventCountry "GER"]
[SourceTitle "playchess.com"]
[Source "ChessBase"]
[SourceQuality "1"]
[TimeControl "40/5400+30:1800+30"]

1. d4 {[%emt 0:00:02]} Nf6 {[%emt 0:00:12]} 2. c4 {[%emt 0:00:02]} e6 {[%emt 0:00:11]} 3. Nc3 {[%emt 0:00:30]} Bb4 {[%emt 0:08:46]} 4. e3 {[%emt 0:01:03]} c5 {[%emt 0:06:06]} 5. Nf3 {[%emt 0:06:04]} d5 {[%emt 0:08:26]} 6. Bd2 {[%emt 0:08:49]} O-O {[%emt 0:04:14]} 7. a3 {[%emt 0:05:10]} Bxc3 {[%emt 0:01:18]} 8. Bxc3 {[%emt 0:00:06]} Ne4 {[%emt 0:04:21]} 9. Rc1 {[%emt 0:02:07]} cxd4 {[%emt 0:13:43]} 10. Qxd4 {[%emt 0:04:02]} Nxc3 {[%emt 0:00:27]} 11. Qxc3 {[%emt 0:00:02]} dxc4 {[%emt 0:04:35]} 12. Bxc4 {[%emt 0:00:04]} Bd7 {[%emt 0:01:13]} 13. O-O {[%emt 0:03:26]} Bc6 {[%emt 0:06:10]} 14. Rfd1 {[%emt 0:08:37]} Qe7 {[%emt 0:00:37]} 15. Ne5 {[%emt 0:00:31]} Qg5 {[%emt 0:07:08]} 16. Bf1 {[%emt 0:05:58]} Bd5 {[%emt 0:01:47]} 17. f4 {[%emt 0:03:45]} Qf5 {[%emt 0:01:45]} 18. Bd3 {[%emt 0:01:18]} Be4 {[%emt 0:01:13]} 19. Bxe4 {[%emt 0:01:22]} Qxe4 {[%emt 0:00:03]} 20. Rd4 {[%emt 0:00:15]} Qf5 {[%emt 0:00:39]} 21. Qc7 {[%emt 0:00:50]} Nc6 {[%emt 0:01:46]} 22. Nxc6 {[%emt 0:06:12]} bxc6 {[%emt 0:00:02]} 23. Qxc6 {[%emt 0:00:32]} e5 {[%emt 0:03:00]} 24. Qe4 {[%emt 0:08:54]} Qe6 {[%emt 0:04:25]} 25. Qxe5 {[%emt 0:03:09]} Qb3 {[%emt 0:02:47]} 26. Rb4 {[%emt 0:02:03]} Qd3 {[%emt 0:00:05]} 27. Qc3 {[%emt 0:01:38]} Qe2 {[%emt 0:01:04]} 28. Re1 {[%emt 0:00:09]} Qg4 {[%emt 0:00:25]} 29. Rc4 {[%emt 0:08:44]} h6 {[%emt 0:03:50]} 30. b4 {[%emt 0:01:39]} Rfe8 {[%emt 0:01:45]} 31. Rc7 {[%emt 0:03:46]} Re6 {[%emt 0:01:35]} 32. Rc8+ {[%emt 0:01:09]} Rxc8 {[%emt 0:00:04]} 33. Qxc8+ {[%emt 0:00:03]} Kh7 {[%emt 0:00:09]} 34. Qc2+ {[%emt 0:01:08]} Kg8 {[%emt 0:02:06]} 35. h3 {[%emt 0:00:55]} Qh5 {[%emt 0:00:35]} 36. e4 {[%emt 0:03:45]} Qb5 {[%emt 0:01:19]} 37. Rd1 {[%emt 0:02:36]} Rc6 {[%emt 0:02:48]} 38. Rd8+ {[%emt 0:01:14]} Kh7 {[%emt 0:00:04]} 39. Qd3 {[%emt 0:00:08]} Qb6+ {[%emt 0:01:47]} 40. Kh2 {[%emt 0:00:10]} Rg6 {[%emt 0:01:09]} 41. Rd4 {[%emt 0:35:28]} Qc7 {[%emt 0:32:01]} 42. e5 {[%emt 0:03:33]} Qc6 {[%emt 0:03:35]} 43. Qe4 {[%emt 0:00:07]} Qc7 {[%emt 0:00:00]} 44. Rd6 {[%emt 0:00:00]} Kg8 {[%emt 0:03:15]} 45. Rxg6 {[%emt 0:00:00]} fxg6 {[%emt 0:00:00]} 46. Qxg6 {[%emt 0:00:00]} Qc1 {[%emt 0:00:00]} 47. Qg3 {[%emt 0:00:00]} Qc4 {[%emt 0:00:00]} 48. f5 {[%emt 0:00:00]} Kf7 {[%emt 0:00:00]} 49. Qg6+ {[%emt 0:00:00]} Kf8 {[%emt 0:00:00]} 50. Qd6+ {[%emt 0:00:00]} Ke8 {[%emt 0:00:00]} 51. e6 {[%emt 0:00:00]} 1-0

[Event "DFMMLV 2024"]
[Site "Braunfels"]
[Date "2024.06.02"]
[Round "5.29"]
[White "Just, Anita"]
[Black "Hielscher, Ursula"]
[Result "0-1"]
[ECO "C13"]
[WhiteElo "1884"]
[BlackElo "1829"]
[Annotator "NA RC"]
[PlyCount "140"]
[EventDate "2024.05.30"]
[EventType "team-tourn"]
[EventCountry "GER"]
[SourceTitle "playchess.com"]
[Source "ChessBase"]
[SourceQuality "1"]
[TimeControl "40/5400+30:1800+30"]

1. e4 {[%emt 0:00:02]} e6 {[%emt 0:00:03]} 2. d4 {[%emt 0:00:10]} d5 {[%emt 0:00:03]} 3. Nc3 {[%emt 0:00:06]} Nf6 {[%emt 0:00:04]} 4. Bg5 {[%emt 0:00:11]} dxe4 {[%emt 0:00:06]} 5. Bxf6 {[%emt 0:06:28]} gxf6 {[%emt 0:00:05]} 6. Nxe4 {[%emt 0:00:16]} f5 {[%emt 0:00:07]} 7. Ng3 {[%emt 0:02:42]} c5 {[%emt 0:02:31]} 8. Nf3 {[%emt 0:05:29]} Nc6 {[%emt 0:08:48]} 9. c3 {[%emt 0:02:13]} cxd4 {[%emt 0:00:48]} 10. Nxd4 {[%emt 0:08:08]} Nxd4 {[%emt 0:00:55]} 11. Qxd4 {[%emt 0:00:22]} Qxd4 {[%emt 0:00:09]} 12. cxd4 {[%emt 0:00:05]} Bb4+ {[%emt 0:01:22]} 13. Kd1 {[%emt 0:01:22]} Bd7 {[%emt 0:04:02]} 14. Rc1 {[%emt 0:04:07]} Rd8 {[%emt 0:03:37]} 15. Kc2 {[%emt 0:17:37]} Bc6 {[%emt 0:04:40]} 16. Rd1 {[%emt 0:07:49]} Rg8 {[%emt 0:05:34]} 17. f3 {[%emt 0:02:21]} Ke7 {[%emt 0:11:21]} 18. Ne2 {[%emt 0:03:31]} Kf6 {[%emt 0:07:57]} 19. Nc3 {[%emt 0:02:55]} Ba5 {[%emt 0:02:18]} 20. Rd2 {[%emt 0:02:41]} Bb6 {[%emt 0:01:08]} 21. Ne2 {[%emt 0:06:18]} Rd6 {[%emt 0:05:05]} 22. Kc3 {[%emt 0:05:47]} Bb5 {[%emt 0:03:29]} 23. b3 {[%emt 0:10:51]} Bxe2 {[%emt 0:08:31]} 24. Bxe2 {[%emt 0:00:31]} Rxg2 {[%emt 0:02:12]} 25. h4 {[%emt 0:00:37]} Rxd4 {[%emt 0:03:52]} 26. Rxd4 {[%emt 0:01:50]} Bxd4+ {[%emt 0:00:02]} 27. Kd3 {[%emt 0:00:24]} Bb6 {[%emt 0:03:18]} 28. a4 {[%emt 0:00:54]} Rg8 {[%emt 0:01:14]} 29. Bd1 {[%emt 0:01:33]} Rd8+ {[%emt 0:00:48]} 30. Ke2 {[%emt 0:00:22]} Rd4 {[%emt 0:02:39]} 31. Bc2 {[%emt 0:01:34]} Ke5 {[%emt 0:01:56]} 32. Bd1 {[%emt 0:00:27]} h5 {[%emt 0:01:52]} 33. Bc2 {[%emt 0:01:09]} Bd8 {[%emt 0:01:21]} 34. Ke3 {[%emt 0:01:28]} Bxh4 {[%emt 0:01:24]} 35. f4+ {[%emt 0:01:47]} Rxf4 {[%emt 0:00:50]} 36. Bd1 {[%emt 0:00:09]} Bf2+ {[%emt 0:00:47]} 37. Kd3 {[%emt 0:01:14]} h4 {[%emt 0:00:31]} 38. Bh5 {[%emt 0:00:33]} f6 {[%emt 0:01:36]} 39. Ke2 {[%emt 0:00:15]} Bg3 {[%emt 0:00:37]} 40. Ke3 {[%emt 0:01:11]} Rb4 {[%emt 0:01:12]} 41. Bd1 {[%emt 0:30:12]} f4+ {[%emt 0:30:59]} 42. Kd3 {[%emt 0:00:48]} f3 {[%emt 0:01:26]} 43. Bxf3 {[%emt 0:01:21]} Rxb3+ {[%emt 0:00:08]} 44. Ke2 {[%emt 0:00:08]} Kf4 {[%emt 0:00:54]} 45. Bh5 {[%emt 0:00:15]} e5 {[%emt 0:02:09]} 46. Rf1+ {[%emt 0:01:06]} Kg5 {[%emt 0:00:21]} 47. Bf7 {[%emt 0:00:17]} Rb2+ {[%emt 0:01:07]} 48. Ke3 {[%emt 0:00:40]} f5 {[%emt 0:01:10]} 49. Be6 {[%emt 0:00:45]} f4+ {[%emt 0:00:13]} 50. Ke4 {[%emt 0:00:39]} Re2+ {[%emt 0:01:27]} 51. Kf3 {[%emt 0:00:31]} Re3+ {[%emt 0:00:41]} 52. Kg2 {[%emt 0:00:03]} e4 {[%emt 0:00:36]} 53. Rb1 {[%emt 0:01:58]} f3+ {[%emt 0:00:34]} 54. Kh3 {[%emt 0:00:00]} Re2 {[%emt 0:00:00]} 55. Rb5+ {[%emt 0:00:00]} Kf6 {[%emt 0:00:00]} 56. Bc4 {[%emt 0:00:00]} Rh2+ {[%emt 0:00:00]} 57. Kg4 {[%emt 0:00:00]} f2 {[%emt 0:00:00]} 58. Rxb7 {[%emt 0:00:00]} Ke5 {[%emt 0:00:00]} 59. Rxa7 {[%emt 0:00:00]} Rh1 {[%emt 0:00:00]} 60. Rf7 {[%emt 0:00:00]} Kd4 {[%emt 0:00:00]} 61. Bb5 {[%emt 0:00:00]} Ra1 {[%emt 0:00:00]} 62. Rd7+ {[%emt 0:00:00]} Ke3 {[%emt 0:00:00]} 63. Rf7 {[%emt 0:00:00]} Kd2 {[%emt 0:00:00]} 64. Rd7+ {[%emt 0:00:00]} Ke1 {[%emt 0:00:00]} 65. Re7 {[%emt 0:00:00]} f1=Q {[%emt 0:00:00]} 66. Bxf1 {[%emt 0:00:00]} Kxf1 {[%emt 0:00:00]} 67. Rxe4 {[%emt 0:00:00]} Kg2 {[%emt 0:00:00]} 68. Re2+ {[%emt 0:00:00]} Bf2 {[%emt 0:00:00]} 69. Re4 {[%emt 0:00:00]} h3 {[%emt 0:00:00]} 70. Kg5 {[%emt 0:00:00]} h2 {[%emt 0:00:00]} 0-1

[Event "DFMMLV 2024"]
[Site "Braunfels"]
[Date "2024.06.02"]
[Round "5.30"]
[White "Grabowski, Petra"]
[Black "Kosovska, Olena"]
[Result "1-0"]
[ECO "E73"]
[WhiteElo "1791"]
[BlackElo "1935"]
[Annotator "RC"]
[PlyCount "75"]
[EventDate "2024.05.30"]
[EventType "team-tourn"]
[EventCountry "GER"]
[SourceTitle "playchess.com"]
[Source "ChessBase"]
[SourceQuality "1"]
[TimeControl "40/5400+30:1800+30"]

1. d4 {[%emt 0:00:03]} g6 {[%emt 0:00:10]} 2. e4 {[%emt 0:00:05]} Bg7 {[%emt 0:00:20]} 3. c4 {[%emt 0:00:10]} d6 {[%emt 0:00:11]} 4. Nc3 {[%emt 0:00:12]} Nd7 {[%emt 0:02:40]} 5. Be2 {[%emt 0:01:28]} Ngf6 {[%emt 0:02:23]} 6. Be3 {[%emt 0:04:25]} O-O {[%emt 0:01:36]} 7. h3 {[%emt 0:01:31]} c5 {[%emt 0:02:21]} 8. d5 {[%emt 0:00:30]} a6 {[%emt 0:00:30]} 9. a4 {[%emt 0:00:05]} Qc7 {[%emt 0:03:34]} 10. Nf3 {[%emt 0:02:58]} Ne5 {[%emt 0:02:53]} 11. Nxe5 {[%emt 0:01:41]} dxe5 {[%emt 0:00:05]} 12. O-O {[%emt 0:01:24]} Rd8 {[%emt 0:06:15]} 13. Qc2 {[%emt 0:00:36]} Nd7 {[%emt 0:14:39]} 14. Bg4 {[%emt 0:04:29]} Nf6 {[%emt 0:01:57]} 15. Be2 {[%emt 0:00:45]} Ne8 {[%emt 0:01:00]} 16. h4 {[%emt 0:06:49]} Bd7 {[%emt 0:15:42]} 17. h5 {[%emt 0:07:06]} Rab8 {[%emt 0:01:59]} 18. h6 {[%emt 0:15:48]} Bh8 {[%emt 0:00:38]} 19. g4 {[%emt 0:04:23]} Nd6 {[%emt 0:17:24]} 20. f3 {[%emt 0:06:39]} b5 {[%emt 0:08:20]} 21. axb5 {[%emt 0:02:23]} axb5 {[%emt 0:00:43]} 22. cxb5 {[%emt 0:01:02]} Nxb5 {[%emt 0:00:10]} 23. Nxb5 {[%emt 0:01:25]} Bxb5 {[%emt 0:00:06]} 24. Bxb5 {[%emt 0:02:34]} Rxb5 {[%emt 0:00:05]} 25. b4 {[%emt 0:03:35]} c4 {[%emt 0:01:20]} 26. Bc5 {[%emt 0:00:23]} Bf6 {[%emt 0:00:37]} 27. Qxc4 {[%emt 0:02:16]} Rb7 {[%emt 0:00:59]} 28. Qc1 {[%emt 0:06:29]} e6 {[%emt 0:01:13]} 29. d6 {[%emt 0:07:59]} Qb8 {[%emt 0:00:27]} 30. g5 {[%emt 0:00:16]} Bh8 {[%emt 0:00:14]} 31. Ra6 {[%emt 0:02:42]} f6 {[%emt 0:02:02]} 32. Qc4 {[%emt 0:03:03]} Qc8 {[%emt 0:02:56]} 33. Rfa1 {[%emt 0:00:51]} Qd7 {[%emt 0:01:21]} 34. Ra7 {[%emt 0:02:56]} Re8 {[%emt 0:02:49]} 35. Rxb7 {[%emt 0:00:40]} Qxb7 {[%emt 0:00:06]} 36. Ra7 {[%emt 0:00:15]} Qc6 {[%emt 0:02:04]} 37. b5 {[%emt 0:00:40]} Qc8 {[%emt 0:00:51]} 38. d7 {[%emt 0:00:14]} 1-0